bitfinex/quotes_SOLUSD_20241122
["timestamp","ask_amount","ask_price","bid_price","bid_amount"]
[1732288195368,19.21458279,255.37,255.28,23.776884]
[1732288196834,19.21458279,255.37,255.29,19.21458279]
[1732288197034,160.86,255.44,255.3,23.776884]
[1732288197035,3.915,255.43,255.3,23.776884]
[1732288197258,19.21458279,255.4,255.31,19.21458279]
[1732288197451,19.21458279,255.38,255.3,23.776884]
[1732288197653,19.21458279,255.36,255.17,23.776884]
[1732288197869,19.21458279,255.36,255.28,23.776884]
[1732288198337,19.21458279,255.38,255.3,23.776884]
[1732288198935,19.21458279,255.36,255.3,23.776884]
[1732288199152,19.21458279,255.38,255.3,23.776884]
[1732288200247,3.9154,255.41,255.3,23.776884]
[1732288200459,19.21458279,255.75,255.58,2.5]
[1732288200646,19.21458279,255.75,255.58,45.49146679]
[1732288200939,19.21458279,255.72,255.59,2.5]
[1732288201249,19.21458279,255.72,255.54,2.5]
[1732288201250,134.8,255.82,255.54,26.276884]
[1732288201557,33.2302,255.79,255.54,2.5]
[1732288201811,11.27,255.78,255.54,2.5]
[1732288202276,19.21458279,255.66,255.6,2.5]
[1732288202565,19.21458279,255.68,255.6,2.5]
[1732288202867,19.21458279,255.64,255.58,2.5]
[1732288203062,19.21458279,255.64,255.59,23.776884]
[1732288203447,19.21458279,255.64,255.6,2.5]
[1732288204277,19.21458279,255.69,255.64,2.5]
[1732288204503,19.21458279,255.72,255.67,5.0]
[1732288204647,19.21458279,255.76,255.69,2.5]
[1732288204853,19.21458279,255.76,255.7,23.776884]
[1732288205344,19.21458279,255.76,255.69,5.0]
[1732288205676,19.21458279,255.76,255.61,4.77628996]
[1732288205677,19.21458279,255.8,255.75,2.5]
[1732288205910,19.21458279,255.8,255.73,23.776884]
[1732288205911,19.21458279,255.82,255.77,5.0]
[1732288206065,19.21458279,255.84,255.79,2.5]
[1732288206256,19.21458279,255.82,255.8,23.776884]
[1732288206460,19.21458279,255.82,255.77,5.0]
[1732288206654,19.21458279,255.78,255.77,2.5]
[1732288206958,30.94137058,255.78,255.74,2.5]
[1732288207158,30.94137058,255.84,255.7,2.5]
[1732288207340,30.94137058,255.74,255.72,2.5]
[1732288207533,30.94137058,255.84,255.72,2.5]
[1732288207534,30.94137058,255.73,255.72,26.276884]
[1732288208058,30.94137058,255.73,255.67,2.5]
[1732288208266,30.94137058,255.68,255.63,2.5]
[1732288208440,30.94137058,255.71,255.61,2.5]
[1732288208441,30.94137058,255.64,255.61,5.0]
[1732288208642,30.94137058,255.64,255.63,2.5]
[1732288209023,30.94137058,255.64,255.61,5.0]
[1732288209642,30.94137058,255.71,255.5,6.225]
[1732288209643,30.94137058,255.62,255.59,2.5]
[1732288209844,30.94137058,255.6,255.59,2.5]
[1732288210052,30.94137058,255.6,255.57,5.0]
[1732288210246,30.94137058,255.6,255.57,2.5]
[1732288210446,30.94137058,255.58,255.53,5.0]
[1732288210624,30.94137058,255.56,255.55,2.5]
[1732288210825,30.94137058,255.56,255.53,2.5]
[1732288211025,30.94137058,255.54,255.51,5.0]
[1732288211342,34.85217058,255.71,255.47,2.5]
[1732288211343,30.94137058,255.52,255.47,2.5]
[1732288211643,30.94137058,255.48,255.43,2.5]
[1732288211820,30.94137058,255.48,255.47,5.0]
[1732288212025,30.94137058,255.5,255.49,5.0]
[1732288212319,30.94137058,255.5,255.36,17.5969]
[1732288212320,30.94137058,255.5,255.42,5.0]
[1732288212524,30.94137058,255.43,255.42,2.5]
[1732288212741,30.94137058,255.43,255.4,5.0]
[1732288212940,30.94137058,255.43,255.31,30.94137058]
[1732288212941,30.94137058,255.41,255.36,2.5]
[1732288213241,30.94137058,255.37,255.34,2.5]
[1732288213467,30.94137058,255.45,255.32,2.5]
[1732288213468,30.94137058,255.35,255.32,2.5]
[1732288213640,30.94137058,255.35,255.33,2.5]
[1732288214023,30.94137058,255.37,255.36,5.0]
[1732288214248,30.94137058,255.37,255.32,2.5]
[1732288214470,30.94137058,255.34,255.32,2.5]
[1732288214828,30.94137058,255.36,255.34,2.5]
[1732288215340,30.94137058,255.36,255.33,2.5]
[1732288215523,30.94137058,255.34,255.33,2.5]
[1732288215724,30.94137058,255.34,255.29,2.5]
[1732288215921,30.94137058,255.3,255.29,2.5]
[1732288216120,30.94137058,255.3,255.18,6.5753]
[1732288216121,30.94137058,255.3,255.26,2.5]
[1732288216456,30.94137058,255.27,255.26,2.5]
[1732288217040,30.94137058,255.27,255.26,5.0]
[1732288217746,30.94137058,255.27,255.26,2.5]
[1732288217959,30.94137058,255.27,255.26,5.0]
[1732288218253,30.94137058,255.27,255.26,2.5]
[1732288218457,30.94137058,255.27,255.26,5.0]
[1732288218832,30.94137058,255.27,255.26,2.5]
[1732288219032,30.94137058,255.27,255.21,5.0]
[1732288219233,61.88274116,255.22,255.15,2.5]
[1732288219445,134.8,255.4,255.17,2.5]
[1732288219642,3.9155,255.39,255.25,2.5]
[1732288220041,3.9155,255.39,255.24,2.5]
[1732288220651,30.94137058,255.25,255.24,2.5]
[1732288221257,30.94137058,255.25,255.24,5.0]
[1732288221561,30.94137058,255.32,255.13,20.0]
[1732288221562,30.94137058,255.32,255.26,5.0]
[1732288221788,30.94137058,255.27,255.24,2.5]
[1732288221945,30.94137058,255.32,255.24,2.5]
[1732288222439,30.94137058,255.25,255.24,2.5]
[1732288222864,30.94137058,255.25,255.22,2.5]
[1732288223153,30.94137058,255.23,255.21,2.5]
[1732288223455,30.94137058,255.27,255.24,5.0]
[1732288223660,2.03445142,255.41,255.12,20.0]
[1732288223661,30.94137058,255.31,255.3,2.5]
[1732288224340,30.94137058,255.35,255.34,2.5]
[1732288224550,30.94137058,255.37,255.36,5.0]
[1732288225047,30.94137058,255.43,255.42,5.0]
[1732288225245,30.94137058,255.45,255.44,2.5]
[1732288225453,30.94137058,255.47,255.46,5.0]
[1732288225755,30.94137058,255.47,255.46,2.5]
[1732288225932,30.94137058,255.47,255.45,2.5]
[1732288226136,30.94137058,255.58,255.5,2.5]
[1732288226807,3.9109,255.69,255.59,2.5]
[1732288227256,3.9109,255.69,255.43,2.5]
[1732288227257,30.94137058,255.71,255.63,2.5]
[1732288227455,30.94137058,255.64,255.63,2.5]
[1732288227656,30.94137058,255.64,255.58,2.5]
[1732288227976,34.85207058,255.71,255.52,5.0]
[1732288228262,44.62877058,255.71,255.5,5.0]
[1732288228473,44.62877058,255.71,255.36,17.0468]
[1732288228474,134.8,255.7,255.46,2.5]
[1732288228652,134.8,255.69,255.46,2.5]
[1732288228914,134.8,255.69,255.48,2.5]
[1732288229251,23.776884,255.67,255.52,5.0]
[1732288229447,3.9111,255.68,255.52,5.0]
[1732288229448,30.94137058,255.53,255.52,5.0]
[1732288230056,30.94137058,255.53,255.5,5.0]
[1732288230336,30.94137058,255.51,255.43,5.0]
[1732288230552,30.94137058,255.44,255.43,5.0]
[1732288230766,30.94137058,255.46,255.45,2.5]
[1732288231351,30.94137058,255.52,255.51,5.0]
[1732288231687,30.94137058,255.54,255.53,5.0]
[1732288231963,9.7758,255.74,255.53,5.0]
[1732288231964,30.94137058,255.56,255.53,5.0]
[1732288232164,30.94137058,255.56,255.55,5.0]
[1732288232677,30.94137058,255.58,255.57,5.0]
[1732288232870,30.94137058,255.58,255.55,2.5]
[1732288233062,30.94137058,255.56,255.55,5.0]
[1732288233265,30.94137058,255.56,255.43,2.5]
[1732288233266,30.94137058,255.62,255.61,2.5]
[1732288233558,3.9089,255.82,255.69,5.0]
[1732288233775,3.9089,255.82,255.69,2.5]
[1732288233954,30.94137058,255.7,255.67,2.5]
[1732288234160,30.94137058,255.68,255.67,2.5]
[1732288235243,30.94137058,255.7,255.69,5.0]
[1732288237259,30.94137058,255.7,255.65,2.5]
[1732288237484,30.94137058,255.71,255.67,2.5]
[1732288237657,3.9101,255.75,255.67,2.5]
[1732288237862,30.94137058,255.68,255.67,2.5]
[1732288238171,30.94137058,255.68,255.67,5.0]
[1732288238361,30.94137058,255.7,255.69,5.0]
[1732288239362,30.94137058,255.7,255.65,5.0]
[1732288239564,30.94137058,255.66,255.65,5.0]
[1732288239823,30.94137058,255.66,255.65,2.5]
[1732288239945,30.94137058,255.66,255.65,5.0]
[1732288241661,30.94137058,255.66,255.63,2.5]
[1732288242001,30.94137058,255.64,255.63,5.0]
[1732288242273,30.94137058,255.64,255.63,2.5]
[1732288242659,30.94137058,255.64,255.56,2.5]
[1732288242972,3.9108,255.7,255.63,2.5]
[1732288243165,30.94137058,255.64,255.63,2.5]
[1732288244558,30.94137058,255.64,255.63,5.0]
[1732288244962,30.94137058,255.64,255.63,2.5]
[1732288245956,30.94137058,255.71,255.45,7.1717]
[1732288245957,9.7724,255.83,255.7,2.5]
[1732288246155,3.9086,255.84,255.7,2.5]
[1732288246156,30.94137058,255.71,255.7,2.5]
[1732288246760,30.94137058,255.73,255.7,2.5]
[1732288246950,30.94137058,255.73,255.72,2.5]
[1732288247276,30.94137058,255.73,255.72,5.0]
[1732288247873,30.94137058,255.73,255.72,2.5]
[1732288248080,30.94137058,255.73,255.69,2.5]
[1732288248253,30.94137058,255.7,255.69,5.0]
[1732288248866,30.94137058,255.7,255.67,2.5]
[1732288249069,30.94137058,255.68,255.67,5.0]
[1732288249562,30.94137058,255.68,255.67,2.5]
[1732288249880,30.94137058,255.68,255.67,5.0]
[1732288250075,30.94137058,255.68,255.65,5.0]
[1732288250260,30.94137058,255.66,255.65,5.0]
[1732288251278,30.94137058,255.66,255.65,2.5]
[1732288251753,30.94137058,255.66,255.65,5.0]
[1732288252887,30.94137058,255.68,255.67,5.0]
[1732288253070,30.94137058,255.72,255.7,2.5]
[1732288253260,30.94137058,255.71,255.7,2.5]
[1732288254284,61.88274116,255.71,255.64,2.5]
[1732288254479,30.94137058,255.65,255.64,2.5]
[1732288256382,34.85307058,255.65,255.63,2.5]
[1732288256568,30.94137058,255.65,255.63,2.5]
[1732288257369,74.71825458,255.64,255.51,2.5]
[1732288257575,34.85417058,255.58,255.52,2.5]
[1732288257778,43.776884,255.64,255.56,5.0]
[1732288258165,23.9118,255.64,255.58,2.5]
[1732288258578,3.9118,255.64,255.58,2.5]
[1732288259085,30.94137058,255.59,255.56,2.5]
[1732288259284,30.94137058,255.57,255.56,2.5]
[1732288260285,30.94137058,255.57,255.54,2.5]
[1732288260471,30.94137058,255.58,255.45,7.1717]
[1732288260472,30.94137058,255.55,255.52,2.5]
[1732288260674,30.94137058,255.58,255.54,5.0]
[1732288260871,20.0,255.62,255.57,5.0]
[1732288261082,23.9113,255.67,255.6,2.5]
[1732288261280,3.9113,255.67,255.6,5.0]
[1732288261483,3.9109,255.69,255.63,2.5]
[1732288261780,34.85207058,255.71,255.63,2.5]
[1732288262282,30.94137058,255.64,255.63,2.5]
[1732288263294,30.94137058,255.64,255.62,2.5]
[1732288264071,30.94137058,255.64,255.6,2.5]
[1732288264271,30.94137058,255.62,255.57,5.0]
[1732288264467,20.0,255.66,255.59,5.0]
[1732288264993,3.9115,255.65,255.59,5.0]
[1732288265305,30.94137058,255.6,255.57,2.5]
[1732288265461,30.94137058,255.58,255.57,2.5]
[1732288265980,20.0,255.68,255.57,2.5]
[1732288265981,30.94137058,255.6,255.57,5.0]
[1732288266197,30.94137058,255.6,255.59,5.0]
[1732288266388,30.94137058,255.62,255.61,5.0]
[1732288266796,19.06881501,255.62,255.61,5.0]
[1732288267089,19.06881501,255.67,255.66,5.0]
[1732288268891,7.3604,255.83,255.58,17.2456]
[1732288268892,19.06881501,255.69,255.68,5.0]
[1732288270290,19.06881501,255.69,255.62,7.0237]
[1732288270291,20.0,255.81,255.74,5.0]
[1732288270506,20.0,255.81,255.76,2.5]
[1732288270788,23.9088,255.83,255.76,2.5]
[1732288271490,19.06881501,255.77,255.72,5.0]
[1732288271693,19.06881501,255.73,255.72,5.0]
[1732288272210,19.06881501,255.75,255.74,5.0]
[1732288274984,19.06881501,255.77,255.76,5.0]
[1732288275307,19.06881501,255.77,255.67,19.06881501]
[1732288275308,19.06881501,255.83,255.8,2.5]
[1732288275486,19.06881501,255.83,255.82,5.0]
[1732288278699,19.06881501,255.83,255.82,2.5]
[1732288279194,3.9082,255.87,255.82,2.5]
[1732288279390,19.06881501,255.83,255.82,2.5]
[1732288280400,19.06881501,255.83,255.78,5.0]
[1732288280580,19.06881501,255.79,255.78,5.0]
[1732288280891,19.06881501,255.79,255.78,2.5]
[1732288281975,19.06881501,255.79,255.78,5.0]
[1732288282179,19.06881501,255.79,255.78,2.5]
[1732288282376,19.06881501,255.79,255.78,5.0]
[1732288282597,19.06881501,255.79,255.78,2.5]
[1732288282772,19.06881501,255.79,255.78,5.0]
[1732288282978,19.06881501,255.79,255.78,2.5]
[1732288283176,19.06881501,255.79,255.78,5.0]
[1732288283708,19.523604,255.98,255.87,2.5]
[1732288283883,2.0307776,256.0,255.96,5.0]
[1732288284081,3.9052,256.07,255.79,24.6257]
[1732288284082,3.905,256.08,255.92,2.5]
[1732288284282,15.60914,256.06,255.92,2.5]
[1732288285006,19.06881501,255.93,255.92,2.5]
[1732288285895,15.60914,256.06,256.04,5.0]
[1732288286096,3.9039,256.15,256.05,2.5]
[1732288286347,19.06881501,256.06,256.05,2.5]
[1732288286687,19.06881501,256.06,256.03,2.5]
[1732288286894,19.06881501,256.04,256.03,2.5]
[1732288287293,19.06881501,256.04,256.02,2.5]
[1732288287607,19.06881501,256.04,255.99,5.0]
[1732288287812,19.06881501,256.0,255.97,2.5]
[1732288288106,19.06881501,255.98,255.95,2.5]
[1732288288292,19.06881501,255.96,255.95,2.5]
[1732288290715,19.06881501,255.96,255.93,2.5]
[1732288290895,19.06881501,255.97,255.95,2.5]
[1732288291088,19.06881501,255.96,255.94,2.5]
[1732288291288,19.06881501,255.95,255.94,2.5]
[1732288291491,19.06881501,255.95,255.92,2.5]
[1732288291679,19.06881501,255.93,255.89,2.5]
[1732288291883,19.06881501,255.9,255.87,2.5]
[1732288292089,19.06881501,255.88,255.87,2.5]
[1732288292387,19.06881501,255.88,255.79,2.5]
[1732288292388,23.776884,255.87,255.79,2.5]
[1732288292596,22.97811501,255.8,255.71,2.5]
[1732288292800,19.06881501,255.73,255.71,2.5]
[1732288293107,19.06881501,255.75,255.74,2.5]
[1732288293303,19.06881501,255.75,255.74,5.0]
[1732288293494,19.06881501,255.77,255.74,5.0]
[1732288293693,19.06881501,255.77,255.74,2.5]
[1732288294006,3.909,255.82,255.76,2.5]
[1732288294182,19.06881501,255.77,255.76,5.0]
[1732288294694,19.06881501,255.77,255.76,2.5]
[1732288294898,19.06881501,255.77,255.76,5.0]
[1732288295498,19.06881501,255.77,255.72,2.5]
[1732288295705,19.06881501,255.73,255.7,2.5]
[1732288295907,19.06881501,255.71,255.7,2.5]
[1732288296096,19.06881501,255.71,255.68,5.0]
[1732288296293,19.06881501,255.69,255.68,5.0]
[1732288296817,19.06881501,255.78,255.73,2.5]
[1732288297009,19.06881501,255.81,255.8,2.5]
[1732288297192,19.06881501,255.81,255.8,5.0]
[1732288297719,19.06881501,255.89,255.88,5.0]
[1732288298152,19.06881501,255.92,255.91,2.5]
[1732288298317,19.06881501,255.94,255.93,5.0]
[1732288298614,19.06881501,255.96,255.95,2.5]
[1732288298794,19.06881501,255.96,255.95,5.0]
[1732288299914,19.06881501,255.96,255.95,2.5]
[1732288300199,19.06881501,255.97,255.94,2.5]
[1732288300414,19.06881501,255.95,255.94,5.0]
[1732288300599,19.06881501,255.95,255.94,2.5]
[1732288300803,30.91266517,255.95,255.94,5.0]
[1732288302823,30.91266517,255.99,255.98,5.0]
[1732288303702,15.60377,256.17,256.03,2.5]
[1732288303904,30.91266517,256.1,256.08,2.5]
[1732288304432,30.91266517,256.1,255.92,2.5]
[1732288304433,30.91266517,256.1,256.03,5.0]
[1732288304601,30.91266517,256.1,256.03,2.5]
[1732288305012,30.91266517,256.04,256.03,2.5]
[1732288305320,30.91266517,256.04,256.01,5.0]
[1732288305616,30.91266517,256.02,256.01,5.0]
[1732288305817,30.91266517,256.02,256.01,2.5]
[1732288306722,30.91266517,256.02,256.0,2.5]
[1732288306926,30.91266517,256.01,256.0,5.0]
[1732288308128,3.905,256.08,256.03,2.5]
[1732288308302,30.91266517,256.04,256.02,2.5]
[1732288308627,30.91266517,256.04,256.01,2.5]
[1732288308820,30.91266517,256.02,256.01,5.0]
[1732288309008,30.91266517,256.02,256.01,2.5]
[1732288309321,23.776884,256.09,256.02,2.5]
[1732288309505,3.9048,256.09,256.01,2.5]
[1732288309707,3.9048,256.09,255.98,2.5]
[1732288309906,3.9048,256.09,255.97,2.5]
[1732288309907,30.91266517,255.99,255.97,2.5]
[1732288310102,30.91266517,255.99,255.98,2.5]
[1732288310321,30.91266517,256.01,256.0,5.0]
[1732288310514,30.91266517,256.03,256.02,5.0]
[1732288311906,30.91266517,256.05,256.02,5.0]
[1732288312111,134.8,256.24,255.9,4.2905843]
[1732288312112,24.0766,256.26,256.18,2.5]
[1732288312439,30.91266517,256.19,256.17,2.5]
[1732288312619,30.91266517,256.18,256.17,2.5]
[1732288314531,30.91266517,256.18,256.14,2.5]
[1732288314735,30.91266517,256.23,256.14,2.5]
[1732288314736,30.91266517,256.15,256.14,2.5]
[1732288315547,23.776884,256.22,256.15,5.0]
[1732288315829,30.91266517,256.16,256.15,2.5]
[1732288316021,30.81266517,256.16,256.15,2.5]
[1732288316281,30.81266517,256.16,256.11,2.5]
[1732288316536,23.776884,256.22,256.1,2.5]
[1732288316537,30.91266517,256.12,256.1,2.5]
[1732288318233,30.91266517,256.12,256.11,2.5]
[1732288319506,30.91266517,256.12,256.1,2.5]
[1732288319709,24.3419,256.2,256.09,2.5]
[1732288319710,24.3419,256.2,256.12,2.5]
[1732288319904,24.3419,256.2,256.1,2.5]
[1732288319905,30.91266517,256.13,256.1,2.5]
[1732288320144,30.91266517,256.11,256.1,2.5]
[1732288320445,30.91266517,256.11,256.08,2.5]
[1732288320613,30.91266517,256.09,256.08,2.5]
[1732288321184,23.776884,256.08,256.03,2.5]
[1732288321327,30.91266517,256.04,256.03,2.5]
[1732288321521,30.91266517,256.04,256.0,2.5]
[1732288321724,30.91266517,256.01,256.0,2.5]
[1732288321925,30.91266517,256.01,255.99,2.5]
[1732288322227,30.91266517,256.03,256.02,2.5]
[1732288322612,19.01135811,256.03,256.02,2.5]
[1732288322811,19.01135811,256.03,256.0,2.5]
[1732288323012,19.01135811,256.01,255.97,2.5]
[1732288323218,19.01135811,256.0,255.97,2.5]
[1732288323432,23.776884,256.09,255.97,5.0]
[1732288323433,19.01135811,255.98,255.97,5.0]
[1732288323740,19.01135811,255.98,255.97,2.5]
[1732288324240,19.01135811,255.98,255.95,2.5]
[1732288324569,19.01135811,255.96,255.95,2.5]
[1732288325738,3.907,255.95,255.92,2.5]
[1732288325914,19.01135811,255.93,255.88,2.5]
[1732288326195,19.01135811,255.89,255.87,2.5]
[1732288326613,19.01135811,255.89,255.88,2.5]
[1732288327030,19.01135811,255.89,255.87,2.5]
[1732288327238,19.01135811,255.89,255.75,17.5111]
[1732288327239,19.01135811,255.89,255.84,2.5]
[1732288327451,19.01135811,255.85,255.84,2.5]
[1732288327637,19.01135811,255.85,255.83,2.5]
[1732288327836,19.01135811,255.85,255.82,2.5]
[1732288328019,19.01135811,255.83,255.82,2.5]
[1732288328432,19.01135811,255.83,255.79,5.0]
[1732288328622,19.01135811,255.8,255.79,2.5]
[1732288328832,19.01135811,255.8,255.65,7.3264]
[1732288328833,23.776884,255.79,255.69,2.5]
[1732288329028,19.01135811,255.7,255.68,2.5]
[1732288329415,19.01135811,255.7,255.68,5.0]
[1732288329614,19.01135811,255.7,255.68,2.5]
[1732288330189,19.01135811,255.7,255.68,5.0]
[1732288330716,19.01135811,255.7,255.68,2.5]
[1732288330922,19.01135811,255.7,255.66,2.5]
[1732288331121,19.01135811,255.71,255.66,2.5]
[1732288331122,19.01135811,255.67,255.66,2.5]
[1732288331636,19.01135811,255.67,255.66,5.0]
[1732288331939,19.01135811,255.67,255.56,19.01135811]
[1732288331940,19.01135811,255.69,255.68,5.0]
[1732288332147,19.01135811,255.73,255.72,5.0]
[1732288332335,7.2029,255.85,255.58,19.01135811]
[1732288332336,19.01135811,255.77,255.76,2.5]
[1732288332519,19.01135811,255.77,255.76,5.0]
[1732288332727,19.01135811,255.77,255.76,2.5]
[1732288333734,19.01135811,255.77,255.72,2.5]
[1732288333943,38.02271622,255.73,255.61,5.0]
[1732288334151,19.01135811,255.71,255.65,5.0]
[1732288334445,19.01135811,255.71,255.52,19.01135811]
[1732288334446,3.9098,255.77,255.69,2.5]
[1732288334616,3.9098,255.77,255.5,25.6053]
[1732288334617,23.776884,255.76,255.67,2.5]
[1732288335019,19.01135811,255.68,255.67,2.5]
[1732288335855,19.01135811,255.68,255.65,2.5]
[1732288336197,19.01135811,255.66,255.65,2.5]
[1732288337231,19.01135811,255.68,255.67,5.0]
[1732288337529,19.01135811,255.72,255.71,5.0]
[1732288337727,19.01135811,255.74,255.73,2.5]
[1732288337928,19.01135811,255.74,255.73,5.0]
[1732288338336,19.01135811,255.78,255.77,2.5]
[1732288338534,19.01135811,255.78,255.77,5.0]
[1732288338939,19.01135811,255.8,255.77,5.0]
[1732288339137,2.03029666,255.91,255.66,25.2211]
[1732288339138,19.01135811,255.82,255.81,5.0]
[1732288340051,19.01135811,255.84,255.83,2.5]
[1732288340356,19.01135811,255.84,255.83,5.0]
[1732288340645,19.01135811,255.84,255.74,2.5]
[1732288340646,19.01135811,255.86,255.85,5.0]
[1732288341230,19.01135811,255.86,255.85,2.5]
[1732288341755,19.01135811,255.86,255.81,2.5]
[1732288341756,38.02271622,255.86,255.83,2.5]
[1732288341946,3.9081,255.88,255.85,2.5]
[1732288342135,3.9081,255.88,255.8,2.5]
[1732288342339,19.01135811,255.84,255.82,2.5]
[1732288342552,19.01135811,255.84,255.8,2.5]
[1732288342553,38.02271622,255.84,255.8,2.5]
[1732288342754,19.01135811,255.84,255.8,2.5]
[1732288343255,19.01135811,255.81,255.8,2.5]
[1732288343859,19.01135811,255.81,255.8,5.0]
[1732288344540,19.01135811,255.81,255.8,2.5]
[1732288345256,19.01135811,255.81,255.8,5.0]
[1732288345453,19.01135811,255.81,255.8,2.5]
[1732288345863,42.78824211,255.81,255.77,2.3746]
[1732288346056,19.01135811,255.78,255.77,2.3746]
[1732288346636,19.01135811,255.78,255.77,4.8746]
[1732288350262,19.01135811,255.78,255.77,2.3746]
[1732288351056,19.01135811,255.78,255.77,4.8746]
[1732288353477,3.9083,255.87,255.84,2.3746]
[1732288353760,3.9077,255.9,255.84,2.3746]
[1732288354589,23.776884,255.89,255.84,2.3746]
[1732288354757,19.01135811,255.85,255.84,2.3746]
[1732288356450,19.01135811,255.87,255.86,4.8746]
[1732288356744,19.01135811,255.89,255.88,2.3746]
[1732288357159,19.01135811,255.89,255.88,4.8746]
[1732288358266,19.01135811,255.91,255.9,2.5]
[1732288358498,19.01135811,255.91,255.9,2.3746]
[1732288358642,19.01135811,255.91,255.9,4.8746]
[1732288359671,19.01135811,255.91,255.9,2.3746]
[1732288360371,19.01135811,255.91,255.9,4.8746]
[1732288361665,3.9064,255.99,255.94,2.3746]
[1732288361875,19.01135811,255.95,255.94,2.5]
[1732288362084,19.01135811,255.95,255.94,4.8746]
[1732288362285,19.01135811,255.95,255.94,3.8746]
[1732288363371,19.01135811,255.95,255.94,1.5]
[1732288363584,3.9068,255.96,255.94,1.5]
[1732288363585,0.1254,256.02,255.94,3.8746]
[1732288363821,3.9038,256.16,256.06,1.5]
[1732288364072,5.93352231,256.16,256.1,1.5]
[1732288364599,3.9038,256.16,256.12,1.5]
[1732288364748,19.01135811,256.13,256.12,1.5]
[1732288365760,38.02271622,256.13,256.08,2.3746]
[1732288365968,7.0133,256.17,256.08,2.3746]
[1732288365969,19.01135811,256.09,256.08,2.3746]
[1732288366197,19.01135811,256.09,256.06,2.3746]
[1732288366384,19.01135811,256.07,256.06,3.8746]
[1732288366594,19.01135811,256.07,256.06,1.5]
[1732288366783,19.01135811,256.07,256.01,2.3746]
[1732288367082,19.01135811,256.02,256.01,2.3746]
[1732288367463,19.01135811,256.02,256.01,3.8746]
[1732288372277,19.01135811,256.02,256.0,1.5]
[1732288372525,19.01135811,256.01,255.87,7.2829]
[1732288372671,19.01135811,255.97,255.89,21.51135811]
[1732288372876,19.01135811,255.97,255.87,26.29425811]
[1732288373289,19.01135811,255.95,255.87,7.2829]
[1732288373677,19.01135811,255.97,255.89,19.01135811]
[1732288373879,19.01135811,255.95,255.87,7.2829]
[1732288377199,19.01135811,255.97,255.88,21.51135811]
[1732288378104,19.01135811,255.97,255.88,2.5]
[1732288378604,19.01135811,255.99,255.9,21.51135811]
[1732288378785,19.01135811,255.99,255.9,24.01135811]
[1732288378989,19.01135811,255.99,255.9,5.0]
[1732288379193,19.01135811,255.99,255.9,2.5]
[1732288379388,19.01135811,255.95,255.88,2.5]
[1732288379610,19.01135811,255.95,255.87,7.2829]
[1732288379789,15.600709,256.24,256.0,6.8904]
[1732288379984,19.01135811,256.09,256.0,6.8904]
[1732288380183,19.01135811,256.04,256.0,6.8904]
[1732288380408,2.5,256.21,256.0,6.8904]
[1732288380586,19.01135811,256.06,256.0,6.8904]
[1732288380912,19.01135811,256.04,255.95,9.3293]
[1732288381599,19.01135811,256.04,255.76,3.83112802]
[1732288381600,19.01135811,255.99,255.88,24.01135811]
[1732288381896,19.01135811,255.99,255.89,20.0]
[1732288382404,19.01135811,255.99,255.9,2.5]
[1732288382591,19.01135811,255.99,255.89,20.0]
[1732288382910,19.01135811,255.99,255.91,2.5]
[1732288383304,19.01135811,255.99,255.92,2.5]
[1732288383505,19.01135811,256.01,255.92,21.51135811]
[1732288383687,19.01135811,256.03,255.94,2.5]
[1732288384202,19.01135811,256.01,255.92,19.01135811]
[1732288384507,19.01135811,255.99,255.88,24.01135811]